{"text_format":"1","workbook":"xlsx","n_sheets":2,"sheets":["Činnosti","Prg_sheet"],"not_rendered":{"charts":0,"images":0,"macros":1,"external_links":0,"defined_names":1,"comments":1,"pivot_tables":0},"unopened":[],"bounds":{"document_bytes":16777216,"sheet_cells":100000,"rows_first":2000,"rows_last":500,"rows_between":2000,"halvings":0,"cell_chars":16384,"cell_head_chars":4096},"cells_cut":0,"cells_raw":0,"read":"whole","date_system":"1900"}

{"sheet":"Činnosti","index":0,"n_rows":57,"n_cols":24,"rows_kept":57,"cut":false,"hidden":false,"merged":[[0,0,1,1],[3,2,4,3],[3,4,4,5],[3,6,4,6],[0,2,2,4],[0,5,2,7],[3,7,4,7],[3,9,4,9],[3,10,4,10],[0,12,1,13],[0,14,1,14],[2,12,3,13],[4,12,5,13],[2,14,3,14],[4,14,5,14]]}
["Činnosti",null,"Celkem stavba",null,null,{"$f":"H6+J6+K6","v":0},null,null,null,null,null,null,"první měsíc",null,12,null,null,null,null,null,null,null,null,{"$f":"AB1&\"_\"&AC1&\"_\"&AD1","v":"__"}]
[]
[null,null,null,null,null,null,null,null,null,null,null,null,"poslední měsíc",null,12]
[null,null,"Lidi",null,"Mechanizace",null,"Doprava","Celkem",null,"Ostatní","Ubytování"]
[null,null,null,null,null,null,null,null,null,null,null,null,"Rok",null,2017]
[null,"Celkem",{"$f":"SUBTOTAL(9,C8:C57)","v":0},{"$f":"SUBTOTAL(9,D8:D57)","v":0},0,0,0,0,null,{"$f":"Prg_sheet!DG59","v":0},{"$f":"Prg_sheet!DH59","v":0}]
["Ozn.","Činnost na stavbě","Σ Hod","Σ Kč","Σ Hod2","Σ Kč2","Kč2","Σ Kč5",null,null,null,null,null,null,"x"]
[1,null,{"$f":"Prg_sheet!DG8","v":0},{"$f":"Prg_sheet!DH8","v":0},{"$f":"Prg_sheet!DI8","v":0},{"$f":"Prg_sheet!DJ8","v":0},{"$f":"Prg_sheet!DK8","v":0},{"$f":"Prg_sheet!DL8","v":0}]
[2,null,{"$f":"Prg_sheet!DG9","v":0},{"$f":"Prg_sheet!DH9","v":0},{"$f":"Prg_sheet!DI9","v":0},{"$f":"Prg_sheet!DJ9","v":0},{"$f":"Prg_sheet!DK9","v":0},{"$f":"Prg_sheet!DL9","v":0}]
[3,null,{"$f":"Prg_sheet!DG10","v":0},{"$f":"Prg_sheet!DH10","v":0},{"$f":"Prg_sheet!DI10","v":0},{"$f":"Prg_sheet!DJ10","v":0},{"$f":"Prg_sheet!DK10","v":0},{"$f":"Prg_sheet!DL10","v":0}]
[4,null,{"$f":"Prg_sheet!DG11","v":0},{"$f":"Prg_sheet!DH11","v":0},{"$f":"Prg_sheet!DI11","v":0},{"$f":"Prg_sheet!DJ11","v":0},{"$f":"Prg_sheet!DK11","v":0},{"$f":"Prg_sheet!DL11","v":0}]
[5,null,{"$f":"Prg_sheet!DG12","v":0},{"$f":"Prg_sheet!DH12","v":0},{"$f":"Prg_sheet!DI12","v":0},{"$f":"Prg_sheet!DJ12","v":0},{"$f":"Prg_sheet!DK12","v":0},{"$f":"Prg_sheet!DL12","v":0}]
[6,null,{"$f":"Prg_sheet!DG13","v":0},{"$f":"Prg_sheet!DH13","v":0},{"$f":"Prg_sheet!DI13","v":0},{"$f":"Prg_sheet!DJ13","v":0},{"$f":"Prg_sheet!DK13","v":0},{"$f":"Prg_sheet!DL13","v":0}]
[7,null,{"$f":"Prg_sheet!DG14","v":0},{"$f":"Prg_sheet!DH14","v":0},{"$f":"Prg_sheet!DI14","v":0},{"$f":"Prg_sheet!DJ14","v":0},{"$f":"Prg_sheet!DK14","v":0},{"$f":"Prg_sheet!DL14","v":0}]
[8,null,{"$f":"Prg_sheet!DG15","v":0},{"$f":"Prg_sheet!DH15","v":0},{"$f":"Prg_sheet!DI15","v":0},{"$f":"Prg_sheet!DJ15","v":0},{"$f":"Prg_sheet!DK15","v":0},{"$f":"Prg_sheet!DL15","v":0}]
[9,null,{"$f":"Prg_sheet!DG16","v":0},{"$f":"Prg_sheet!DH16","v":0},{"$f":"Prg_sheet!DI16","v":0},{"$f":"Prg_sheet!DJ16","v":0},{"$f":"Prg_sheet!DK16","v":0},{"$f":"Prg_sheet!DL16","v":0}]
[10,null,{"$f":"Prg_sheet!DG17","v":0},{"$f":"Prg_sheet!DH17","v":0},{"$f":"Prg_sheet!DI17","v":0},{"$f":"Prg_sheet!DJ17","v":0},{"$f":"Prg_sheet!DK17","v":0},{"$f":"Prg_sheet!DL17","v":0}]
[11,null,{"$f":"Prg_sheet!DG18","v":0},{"$f":"Prg_sheet!DH18","v":0},{"$f":"Prg_sheet!DI18","v":0},{"$f":"Prg_sheet!DJ18","v":0},{"$f":"Prg_sheet!DK18","v":0},{"$f":"Prg_sheet!DL18","v":0}]
[12,null,{"$f":"Prg_sheet!DG19","v":0},{"$f":"Prg_sheet!DH19","v":0},{"$f":"Prg_sheet!DI19","v":0},{"$f":"Prg_sheet!DJ19","v":0},{"$f":"Prg_sheet!DK19","v":0},{"$f":"Prg_sheet!DL19","v":0}]
[13,null,{"$f":"Prg_sheet!DG20","v":0},{"$f":"Prg_sheet!DH20","v":0},{"$f":"Prg_sheet!DI20","v":0},{"$f":"Prg_sheet!DJ20","v":0},{"$f":"Prg_sheet!DK20","v":0},{"$f":"Prg_sheet!DL20","v":0}]
[14,null,{"$f":"Prg_sheet!DG21","v":0},{"$f":"Prg_sheet!DH21","v":0},{"$f":"Prg_sheet!DI21","v":0},{"$f":"Prg_sheet!DJ21","v":0},{"$f":"Prg_sheet!DK21","v":0},{"$f":"Prg_sheet!DL21","v":0}]
[15,null,{"$f":"Prg_sheet!DG22","v":0},{"$f":"Prg_sheet!DH22","v":0},{"$f":"Prg_sheet!DI22","v":0},{"$f":"Prg_sheet!DJ22","v":0},{"$f":"Prg_sheet!DK22","v":0},{"$f":"Prg_sheet!DL22","v":0}]
[16,null,{"$f":"Prg_sheet!DG23","v":0},{"$f":"Prg_sheet!DH23","v":0},{"$f":"Prg_sheet!DI23","v":0},{"$f":"Prg_sheet!DJ23","v":0},{"$f":"Prg_sheet!DK23","v":0},{"$f":"Prg_sheet!DL23","v":0}]
[17,null,{"$f":"Prg_sheet!DG24","v":0},{"$f":"Prg_sheet!DH24","v":0},{"$f":"Prg_sheet!DI24","v":0},{"$f":"Prg_sheet!DJ24","v":0},{"$f":"Prg_sheet!DK24","v":0},{"$f":"Prg_sheet!DL24","v":0}]
[18,null,{"$f":"Prg_sheet!DG25","v":0},{"$f":"Prg_sheet!DH25","v":0},{"$f":"Prg_sheet!DI25","v":0},{"$f":"Prg_sheet!DJ25","v":0},{"$f":"Prg_sheet!DK25","v":0},{"$f":"Prg_sheet!DL25","v":0}]
[19,null,{"$f":"Prg_sheet!DG26","v":0},{"$f":"Prg_sheet!DH26","v":0},{"$f":"Prg_sheet!DI26","v":0},{"$f":"Prg_sheet!DJ26","v":0},{"$f":"Prg_sheet!DK26","v":0},{"$f":"Prg_sheet!DL26","v":0}]
[20,null,{"$f":"Prg_sheet!DG27","v":0},{"$f":"Prg_sheet!DH27","v":0},{"$f":"Prg_sheet!DI27","v":0},{"$f":"Prg_sheet!DJ27","v":0},{"$f":"Prg_sheet!DK27","v":0},{"$f":"Prg_sheet!DL27","v":0}]
[21,null,{"$f":"Prg_sheet!DG28","v":0},{"$f":"Prg_sheet!DH28","v":0},{"$f":"Prg_sheet!DI28","v":0},{"$f":"Prg_sheet!DJ28","v":0},{"$f":"Prg_sheet!DK28","v":0},{"$f":"Prg_sheet!DL28","v":0}]
[22,null,{"$f":"Prg_sheet!DG29","v":0},{"$f":"Prg_sheet!DH29","v":0},{"$f":"Prg_sheet!DI29","v":0},{"$f":"Prg_sheet!DJ29","v":0},{"$f":"Prg_sheet!DK29","v":0},{"$f":"Prg_sheet!DL29","v":0}]
[23,null,{"$f":"Prg_sheet!DG30","v":0},{"$f":"Prg_sheet!DH30","v":0},{"$f":"Prg_sheet!DI30","v":0},{"$f":"Prg_sheet!DJ30","v":0},{"$f":"Prg_sheet!DK30","v":0},{"$f":"Prg_sheet!DL30","v":0}]
[24,null,{"$f":"Prg_sheet!DG31","v":0},{"$f":"Prg_sheet!DH31","v":0},{"$f":"Prg_sheet!DI31","v":0},{"$f":"Prg_sheet!DJ31","v":0},{"$f":"Prg_sheet!DK31","v":0},{"$f":"Prg_sheet!DL31","v":0}]
[25,null,{"$f":"Prg_sheet!DG32","v":0},{"$f":"Prg_sheet!DH32","v":0},{"$f":"Prg_sheet!DI32","v":0},{"$f":"Prg_sheet!DJ32","v":0},{"$f":"Prg_sheet!DK32","v":0},{"$f":"Prg_sheet!DL32","v":0}]
[26,null,{"$f":"Prg_sheet!DG33","v":0},{"$f":"Prg_sheet!DH33","v":0},{"$f":"Prg_sheet!DI33","v":0},{"$f":"Prg_sheet!DJ33","v":0},{"$f":"Prg_sheet!DK33","v":0},{"$f":"Prg_sheet!DL33","v":0}]
[27,null,{"$f":"Prg_sheet!DG34","v":0},{"$f":"Prg_sheet!DH34","v":0},{"$f":"Prg_sheet!DI34","v":0},{"$f":"Prg_sheet!DJ34","v":0},{"$f":"Prg_sheet!DK34","v":0},{"$f":"Prg_sheet!DL34","v":0}]
[28,null,{"$f":"Prg_sheet!DG35","v":0},{"$f":"Prg_sheet!DH35","v":0},{"$f":"Prg_sheet!DI35","v":0},{"$f":"Prg_sheet!DJ35","v":0},{"$f":"Prg_sheet!DK35","v":0},{"$f":"Prg_sheet!DL35","v":0}]
[29,null,{"$f":"Prg_sheet!DG36","v":0},{"$f":"Prg_sheet!DH36","v":0},{"$f":"Prg_sheet!DI36","v":0},{"$f":"Prg_sheet!DJ36","v":0},{"$f":"Prg_sheet!DK36","v":0},{"$f":"Prg_sheet!DL36","v":0}]
[30,null,{"$f":"Prg_sheet!DG37","v":0},{"$f":"Prg_sheet!DH37","v":0},{"$f":"Prg_sheet!DI37","v":0},{"$f":"Prg_sheet!DJ37","v":0},{"$f":"Prg_sheet!DK37","v":0},{"$f":"Prg_sheet!DL37","v":0}]
[31,null,{"$f":"Prg_sheet!DG38","v":0},{"$f":"Prg_sheet!DH38","v":0},{"$f":"Prg_sheet!DI38","v":0},{"$f":"Prg_sheet!DJ38","v":0},{"$f":"Prg_sheet!DK38","v":0},{"$f":"Prg_sheet!DL38","v":0}]
[32,null,{"$f":"Prg_sheet!DG39","v":0},{"$f":"Prg_sheet!DH39","v":0},{"$f":"Prg_sheet!DI39","v":0},{"$f":"Prg_sheet!DJ39","v":0},{"$f":"Prg_sheet!DK39","v":0},{"$f":"Prg_sheet!DL39","v":0}]
[33,null,{"$f":"Prg_sheet!DG40","v":0},{"$f":"Prg_sheet!DH40","v":0},{"$f":"Prg_sheet!DI40","v":0},{"$f":"Prg_sheet!DJ40","v":0},{"$f":"Prg_sheet!DK40","v":0},{"$f":"Prg_sheet!DL40","v":0}]
[34,null,{"$f":"Prg_sheet!DG41","v":0},{"$f":"Prg_sheet!DH41","v":0},{"$f":"Prg_sheet!DI41","v":0},{"$f":"Prg_sheet!DJ41","v":0},{"$f":"Prg_sheet!DK41","v":0},{"$f":"Prg_sheet!DL41","v":0}]
[35,null,{"$f":"Prg_sheet!DG42","v":0},{"$f":"Prg_sheet!DH42","v":0},{"$f":"Prg_sheet!DI42","v":0},{"$f":"Prg_sheet!DJ42","v":0},{"$f":"Prg_sheet!DK42","v":0},{"$f":"Prg_sheet!DL42","v":0}]
[36,null,{"$f":"Prg_sheet!DG43","v":0},{"$f":"Prg_sheet!DH43","v":0},{"$f":"Prg_sheet!DI43","v":0},{"$f":"Prg_sheet!DJ43","v":0},{"$f":"Prg_sheet!DK43","v":0},{"$f":"Prg_sheet!DL43","v":0}]
[37,null,{"$f":"Prg_sheet!DG44","v":0},{"$f":"Prg_sheet!DH44","v":0},{"$f":"Prg_sheet!DI44","v":0},{"$f":"Prg_sheet!DJ44","v":0},{"$f":"Prg_sheet!DK44","v":0},{"$f":"Prg_sheet!DL44","v":0}]
[38,null,{"$f":"Prg_sheet!DG45","v":0},{"$f":"Prg_sheet!DH45","v":0},{"$f":"Prg_sheet!DI45","v":0},{"$f":"Prg_sheet!DJ45","v":0},{"$f":"Prg_sheet!DK45","v":0},{"$f":"Prg_sheet!DL45","v":0}]
[39,null,{"$f":"Prg_sheet!DG46","v":0},{"$f":"Prg_sheet!DH46","v":0},{"$f":"Prg_sheet!DI46","v":0},{"$f":"Prg_sheet!DJ46","v":0},{"$f":"Prg_sheet!DK46","v":0},{"$f":"Prg_sheet!DL46","v":0}]
[40,null,{"$f":"Prg_sheet!DG47","v":0},{"$f":"Prg_sheet!DH47","v":0},{"$f":"Prg_sheet!DI47","v":0},{"$f":"Prg_sheet!DJ47","v":0},{"$f":"Prg_sheet!DK47","v":0},{"$f":"Prg_sheet!DL47","v":0}]
[41,null,{"$f":"Prg_sheet!DG48","v":0},{"$f":"Prg_sheet!DH48","v":0},{"$f":"Prg_sheet!DI48","v":0},{"$f":"Prg_sheet!DJ48","v":0},{"$f":"Prg_sheet!DK48","v":0},{"$f":"Prg_sheet!DL48","v":0}]
[42,null,{"$f":"Prg_sheet!DG49","v":0},{"$f":"Prg_sheet!DH49","v":0},{"$f":"Prg_sheet!DI49","v":0},{"$f":"Prg_sheet!DJ49","v":0},{"$f":"Prg_sheet!DK49","v":0},{"$f":"Prg_sheet!DL49","v":0}]
[43,null,{"$f":"Prg_sheet!DG50","v":0},{"$f":"Prg_sheet!DH50","v":0},{"$f":"Prg_sheet!DI50","v":0},{"$f":"Prg_sheet!DJ50","v":0},{"$f":"Prg_sheet!DK50","v":0},{"$f":"Prg_sheet!DL50","v":0}]
[44,null,{"$f":"Prg_sheet!DG51","v":0},{"$f":"Prg_sheet!DH51","v":0},{"$f":"Prg_sheet!DI51","v":0},{"$f":"Prg_sheet!DJ51","v":0},{"$f":"Prg_sheet!DK51","v":0},{"$f":"Prg_sheet!DL51","v":0}]
[45,null,{"$f":"Prg_sheet!DG52","v":0},{"$f":"Prg_sheet!DH52","v":0},{"$f":"Prg_sheet!DI52","v":0},{"$f":"Prg_sheet!DJ52","v":0},{"$f":"Prg_sheet!DK52","v":0},{"$f":"Prg_sheet!DL52","v":0}]
[46,null,{"$f":"Prg_sheet!DG53","v":0},{"$f":"Prg_sheet!DH53","v":0},{"$f":"Prg_sheet!DI53","v":0},{"$f":"Prg_sheet!DJ53","v":0},{"$f":"Prg_sheet!DK53","v":0},{"$f":"Prg_sheet!DL53","v":0}]
[47,null,{"$f":"Prg_sheet!DG54","v":0},{"$f":"Prg_sheet!DH54","v":0},{"$f":"Prg_sheet!DI54","v":0},{"$f":"Prg_sheet!DJ54","v":0},{"$f":"Prg_sheet!DK54","v":0},{"$f":"Prg_sheet!DL54","v":0}]
[48,null,{"$f":"Prg_sheet!DG55","v":0},{"$f":"Prg_sheet!DH55","v":0},{"$f":"Prg_sheet!DI55","v":0},{"$f":"Prg_sheet!DJ55","v":0},{"$f":"Prg_sheet!DK55","v":0},{"$f":"Prg_sheet!DL55","v":0}]
[49,null,{"$f":"Prg_sheet!DG56","v":0},{"$f":"Prg_sheet!DH56","v":0},{"$f":"Prg_sheet!DI56","v":0},{"$f":"Prg_sheet!DJ56","v":0},{"$f":"Prg_sheet!DK56","v":0},{"$f":"Prg_sheet!DL56","v":0}]
[50,null,{"$f":"Prg_sheet!DG57","v":0},{"$f":"Prg_sheet!DH57","v":0},{"$f":"Prg_sheet!DI57","v":0},{"$f":"Prg_sheet!DJ57","v":0},{"$f":"Prg_sheet!DK57","v":0},{"$f":"Prg_sheet!DL57","v":0}]

{"sheet":"Prg_sheet","index":1,"n_rows":59,"n_cols":116,"rows_kept":59,"cut":false,"hidden":true,"merged":[[0,0,1,1],[4,2,4,3],[4,4,4,5],[4,8,4,9],[4,44,4,45],[4,10,4,11],[4,14,4,15],[4,16,4,17],[4,20,4,21],[4,22,4,23],[4,26,4,27],[4,28,4,29],[4,32,4,33],[4,34,4,35],[4,38,4,39],[4,40,4,41],[4,80,4,81],[4,46,4,47],[4,50,4,51],[4,52,4,53],[4,56,4,57],[4,58,4,59],[4,62,4,63],[4,64,4,65],[4,68,4,69],[4,70,4,71],[4,74,4,75],[4,76,4,77],[4,100,4,101],[0,2,0,7],[0,8,0,13],[0,14,0,19],[0,20,0,25],[0,26,0,31],[0,32,0,37],[0,38,0,43],[0,44,0,49],[0,50,0,55],[4,82,4,83],[4,86,4,87],[4,88,4,89],[4,92,4,93],[4,94,4,95],[4,98,4,99],[0,92,0,97],[0,98,0,103],[0,56,0,61],[0,62,0,67],[0,68,0,73],[0,74,0,79],[0,80,0,85],[0,86,0,91],[0,104,0,109],[4,104,4,105],[4,106,4,107],[4,110,4,111],[4,112,4,113],[0,110,1,115]]}
["Činnosti",null,1,null,null,null,null,null,2,null,null,null,null,null,3,null,null,null,null,null,4,null,null,null,null,null,5,null,null,null,null,null,6,null,null,null,null,null,7,null,null,null,null,null,8,null,null,null,null,null,9,null,null,null,null,null,10,null,null,null,null,null,11,null,null,null,null,null,12,null,null,null,null,null,13,null,null,null,null,null,14,null,null,null,null,null,15,null,null,null,null,null,16,null,null,null,null,null,17,null,null,null,null,null,18,null,null,null,null,null,"Součet"]
[]
[]
[]
[null,null,"Lidi",null,"Mechanizace",null,"Doprava","Celkem","Lidi",null,"Mechanizace",null,"Doprava","Celkem","Lidi",null,"Mechanizace",null,"Doprava","Celkem","Lidi",null,"Mechanizace",null,"Doprava","Celkem","Lidi",null,"Mechanizace",null,"Doprava","Celkem","Lidi",null,"Mechanizace",null,"Doprava","Celkem","Lidi",null,"Mechanizace",null,"Doprava","Celkem","Lidi",null,"Mechanizace",null,"Doprava","Celkem","Lidi",null,"Mechanizace",null,"Doprava","Celkem","Lidi",null,"Mechanizace",null,"Doprava","Celkem","Lidi",null,"Mechanizace",null,"Doprava","Celkem","Lidi",null,"Mechanizace",null,"Doprava","Celkem","Lidi",null,"Mechanizace",null,"Doprava","Celkem","Lidi",null,"Mechanizace",null,"Doprava","Celkem","Lidi",null,"Mechanizace",null,"Doprava","Celkem","Lidi",null,"Mechanizace",null,"Doprava","Celkem","Lidi",null,"Mechanizace",null,"Doprava","Celkem","Lidi",null,"Mechanizace",null,"Doprava","Celkem","Lidi",null,"Mechanizace",null,"Doprava","Celkem"]
[null,"Celkem",{"$f":"SUBTOTAL(9,C8:C57)","v":0},{"$f":"SUBTOTAL(9,D8:D57)","v":0},0,0,0,0,{"$f":"SUBTOTAL(9,I8:I57)","v":0},{"$f":"SUBTOTAL(9,J8:J57)","v":0},0,0,0,0,{"$f":"SUBTOTAL(9,O8:O57)","v":0},{"$f":"SUBTOTAL(9,P8:P57)","v":0},0,0,0,0,{"$f":"SUBTOTAL(9,U8:U57)","v":0},{"$f":"SUBTOTAL(9,V8:V57)","v":0},0,0,0,0,{"$f":"SUBTOTAL(9,AA8:AA57)","v":0},{"$f":"SUBTOTAL(9,AB8:AB57)","v":0},0,0,0,0,{"$f":"SUBTOTAL(9,AG8:AG57)","v":0},{"$f":"SUBTOTAL(9,AH8:AH57)","v":0},0,0,0,0,{"$f":"SUBTOTAL(9,AM8:AM57)","v":0},{"$f":"SUBTOTAL(9,AN8:AN57)","v":0},0,0,0,0,{"$f":"SUBTOTAL(9,AS8:AS57)","v":0},{"$f":"SUBTOTAL(9,AT8:AT57)","v":0},0,0,0,0,{"$f":"SUBTOTAL(9,AY8:AY57)","v":0},{"$f":"SUBTOTAL(9,AZ8:AZ57)","v":0},0,0,0,0,{"$f":"SUBTOTAL(9,BE8:BE57)","v":0},{"$f":"SUBTOTAL(9,BF8:BF57)","v":0},0,0,0,0,{"$f":"SUBTOTAL(9,BK8:BK57)","v":0},{"$f":"SUBTOTAL(9,BL8:BL57)","v":0},0,0,0,0,{"$f":"SUBTOTAL(9,BQ8:BQ57)","v":0},{"$f":"SUBTOTAL(9,BR8:BR57)","v":0},0,0,0,0,{"$f":"SUBTOTAL(9,BW8:BW57)","v":0},{"$f":"SUBTOTAL(9,BX8:BX57)","v":0},0,0,0,0,{"$f":"SUBTOTAL(9,CC8:CC57)","v":0},{"$f":"SUBTOTAL(9,CD8:CD57)","v":0},0,0,0,0,{"$f":"SUBTOTAL(9,CI8:CI57)","v":0},{"$f":"SUBTOTAL(9,CJ8:CJ57)","v":0},0,0,0,0,{"$f":"SUBTOTAL(9,CO8:CO57)","v":0},{"$f":"SUBTOTAL(9,CP8:CP57)","v":0},0,0,0,0,{"$f":"SUBTOTAL(9,CU8:CU57)","v":0},{"$f":"SUBTOTAL(9,CV8:CV57)","v":0},0,0,0,0,{"$f":"SUBTOTAL(9,DA8:DA57)","v":0},{"$f":"SUBTOTAL(9,DB8:DB57)","v":0},0,0,0,0,{"$f":"C6+I6+O6+U6+AA6+AG6+AM6+AS6+AY6+BE6+BK6+BQ6+BW6+CC6+CI6+CO6+CU6+DA6","v":0},0,0,0,0,0]
["Ozn.","Činnost na stavbě","Σ Hod","Σ Kč","Σ Hod2","Σ Kč2","Kč2","Σ Kč5","Σ Hod","Σ Kč","Σ Hod2","Σ Kč2","Kč2","Σ Kč5","Σ Hod","Σ Kč","Σ Hod2","Σ Kč2","Kč2","Σ Kč5","Σ Hod","Σ Kč","Σ Hod2","Σ Kč2","Kč2","Σ Kč5","Σ Hod","Σ Kč","Σ Hod2","Σ Kč2","Kč2","Σ Kč5","Σ Hod","Σ Kč","Σ Hod2","Σ Kč2","Kč2","Σ Kč5","Σ Hod","Σ Kč","Σ Hod2","Σ Kč2","Kč2","Σ Kč5","Σ Hod","Σ Kč","Σ Hod2","Σ Kč2","Kč2","Σ Kč5","Σ Hod","Σ Kč","Σ Hod2","Σ Kč2","Kč2","Σ Kč5","Σ Hod","Σ Kč","Σ Hod2","Σ Kč2","Kč2","Σ Kč5","Σ Hod","Σ Kč","Σ Hod2","Σ Kč2","Kč2","Σ Kč5","Σ Hod","Σ Kč","Σ Hod2","Σ Kč2","Kč2","Σ Kč5","Σ Hod","Σ Kč","Σ Hod2","Σ Kč2","Kč2","Σ Kč5","Σ Hod","Σ Kč","Σ Hod2","Σ Kč2","Kč2","Σ Kč5","Σ Hod","Σ Kč","Σ Hod2","Σ Kč2","Kč2","Σ Kč5","Σ Hod","Σ Kč","Σ Hod2","Σ Kč2","Kč2","Σ Kč5","Σ Hod","Σ Kč","Σ Hod2","Σ Kč2","Kč2","Σ Kč5","Σ Hod","Σ Kč","Σ Hod2","Σ Kč2","Kč2","Σ Kč5"]
[{"$f":"Činnosti!A8","v":1},{"$f":"Činnosti!B8","v":0},null,null,null,null,null,null,null,null,null,null,null,null,null,null,null,null,null,null,null,null,null,null,null,null,null,null,null,null,null,null,null,null,null,null,null,null,null,null,null,null,null,null,null,null,null,null,null,null,null,null,null,null,null,null,null,null,null,null,null,null,null,null,null,null,null,null,null,null,null,null,null,null,null,null,null,null,null,null,null,null,null,null,null,null,null,null,null,null,null,null,null,null,null,null,null,null,null,null,null,null,null,null,null,null,null,null,null,null,{"$f":"C8+I8+O8+U8+AA8+AG8+AM8+AS8+AY8+BE8+BK8+BQ8+BW8+CC8+CI8+CO8+CU8+DA8","v":0},0,0,0,0,0]
[{"$f":"Činnosti!A9","v":2},{"$f":"Činnosti!B9","v":0},null,null,null,null,null,null,null,null,null,null,null,null,null,null,null,null,null,null,null,null,null,null,null,null,null,null,null,null,null,null,null,null,null,null,null,null,null,null,null,null,null,null,null,null,null,null,null,null,null,null,null,null,null,null,null,null,null,null,null,null,null,null,null,null,null,null,null,null,null,null,null,null,null,null,null,null,null,null,null,null,null,null,null,null,null,null,null,null,null,null,null,null,null,null,null,null,null,null,null,null,null,null,null,null,null,null,null,null,{"$f":"C9+I9+O9+U9+AA9+AG9+AM9+AS9+AY9+BE9+BK9+BQ9+BW9+CC9+CI9+CO9+CU9+DA9","v":0},{"$f":"D9+J9+P9+V9+AB9+AH9+AN9+AT9+AZ9+BF9+BL9+BR9+BX9+CD9+CJ9+CP9+CV9+DB9","v":0},{"$f":"E9+K9+Q9+W9+AC9+AI9+AO9+AU9+BA9+BG9+BM9+BS9+BY9+CE9+CK9+CQ9+CW9+DC9","v":0},{"$f":"F9+L9+R9+X9+AD9+AJ9+AP9+AV9+BB9+BH9+BN9+BT9+BZ9+CF9+CL9+CR9+CX9+DD9","v":0},{"$f":"G9+M9+S9+Y9+AE9+AK9+AQ9+AW9+BC9+BI9+BO9+BU9+CA9+CG9+CM9+CS9+CY9+DE9","v":0},{"$f":"H9+N9+T9+Z9+AF9+AL9+AR9+AX9+BD9+BJ9+BP9+BV9+CB9+CH9+CN9+CT9+CZ9+DF9","v":0}]
[{"$f":"Činnosti!A10","v":3},{"$f":"Činnosti!B10","v":0},null,null,null,null,null,null,null,null,null,null,null,null,null,null,null,null,null,null,null,null,null,null,null,null,null,null,null,null,null,null,null,null,null,null,null,null,null,null,null,null,null,null,null,null,null,null,null,null,null,null,null,null,null,null,null,null,null,null,null,null,null,null,null,null,null,null,null,null,null,null,null,null,null,null,null,null,null,null,null,null,null,null,null,null,null,null,null,null,null,null,null,null,null,null,null,null,null,null,null,null,null,null,null,null,null,null,null,null,0,0,0,0,0,0]
[{"$f":"Činnosti!A11","v":4},{"$f":"Činnosti!B11","v":0},null,null,null,null,null,null,null,null,null,null,null,null,null,null,null,null,null,null,null,null,null,null,null,null,null,null,null,null,null,null,null,null,null,null,null,null,null,null,null,null,null,null,null,null,null,null,null,null,null,null,null,null,null,null,null,null,null,null,null,null,null,null,null,null,null,null,null,null,null,null,null,null,null,null,null,null,null,null,null,null,null,null,null,null,null,null,null,null,null,null,null,null,null,null,null,null,null,null,null,null,null,null,null,null,null,null,null,null,0,0,0,0,0,0]
[{"$f":"Činnosti!A12","v":5},{"$f":"Činnosti!B12","v":0},null,null,null,null,null,null,null,null,null,null,null,null,null,null,null,null,null,null,null,null,null,null,null,null,null,null,null,null,null,null,null,null,null,null,null,null,null,null,null,null,null,null,null,null,null,null,null,null,null,null,null,null,null,null,null,null,null,null,null,null,null,null,null,null,null,null,null,null,null,null,null,null,null,null,null,null,null,null,null,null,null,null,null,null,null,null,null,null,null,null,null,null,null,null,null,null,null,null,null,null,null,null,null,null,null,null,null,null,0,0,0,0,0,0]
[{"$f":"Činnosti!A13","v":6},{"$f":"Činnosti!B13","v":0},null,null,null,null,null,null,null,null,null,null,null,null,null,null,null,null,null,null,null,null,null,null,null,null,null,null,null,null,null,null,null,null,null,null,null,null,null,null,null,null,null,null,null,null,null,null,null,null,null,null,null,null,null,null,null,null,null,null,null,null,null,null,null,null,null,null,null,null,null,null,null,null,null,null,null,null,null,null,null,null,null,null,null,null,null,null,null,null,null,null,null,null,null,null,null,null,null,null,null,null,null,null,null,null,null,null,null,null,0,0,0,0,0,0]
[{"$f":"Činnosti!A14","v":7},{"$f":"Činnosti!B14","v":0},null,null,null,null,null,null,null,null,null,null,null,null,null,null,null,null,null,null,null,null,null,null,null,null,null,null,null,null,null,null,null,null,null,null,null,null,null,null,null,null,null,null,null,null,null,null,null,null,null,null,null,null,null,null,null,null,null,null,null,null,null,null,null,null,null,null,null,null,null,null,null,null,null,null,null,null,null,null,null,null,null,null,null,null,null,null,null,null,null,null,null,null,null,null,null,null,null,null,null,null,null,null,null,null,null,null,null,null,0,0,0,0,0,0]
[{"$f":"Činnosti!A15","v":8},{"$f":"Činnosti!B15","v":0},null,null,null,null,null,null,null,null,null,null,null,null,null,null,null,null,null,null,null,null,null,null,null,null,null,null,null,null,null,null,null,null,null,null,null,null,null,null,null,null,null,null,null,null,null,null,null,null,null,null,null,null,null,null,null,null,null,null,null,null,null,null,null,null,null,null,null,null,null,null,null,null,null,null,null,null,null,null,null,null,null,null,null,null,null,null,null,null,null,null,null,null,null,null,null,null,null,null,null,null,null,null,null,null,null,null,null,null,0,0,0,0,0,0]
[{"$f":"Činnosti!A16","v":9},{"$f":"Činnosti!B16","v":0},null,null,null,null,null,null,null,null,null,null,null,null,null,null,null,null,null,null,null,null,null,null,null,null,null,null,null,null,null,null,null,null,null,null,null,null,null,null,null,null,null,null,null,null,null,null,null,null,null,null,null,null,null,null,null,null,null,null,null,null,null,null,null,null,null,null,null,null,null,null,null,null,null,null,null,null,null,null,null,null,null,null,null,null,null,null,null,null,null,null,null,null,null,null,null,null,null,null,null,null,null,null,null,null,null,null,null,null,0,0,0,0,0,0]
[{"$f":"Činnosti!A17","v":10},{"$f":"Činnosti!B17","v":0},null,null,null,null,null,null,null,null,null,null,null,null,null,null,null,null,null,null,null,null,null,null,null,null,null,null,null,null,null,null,null,null,null,null,null,null,null,null,null,null,null,null,null,null,null,null,null,null,null,null,null,null,null,null,null,null,null,null,null,null,null,null,null,null,null,null,null,null,null,null,null,null,null,null,null,null,null,null,null,null,null,null,null,null,null,null,null,null,null,null,null,null,null,null,null,null,null,null,null,null,null,null,null,null,null,null,null,null,0,0,0,0,0,0]
[{"$f":"Činnosti!A18","v":11},{"$f":"Činnosti!B18","v":0},null,null,null,null,null,null,null,null,null,null,null,null,null,null,null,null,null,null,null,null,null,null,null,null,null,null,null,null,null,null,null,null,null,null,null,null,null,null,null,null,null,null,null,null,null,null,null,null,null,null,null,null,null,null,null,null,null,null,null,null,null,null,null,null,null,null,null,null,null,null,null,null,null,null,null,null,null,null,null,null,null,null,null,null,null,null,null,null,null,null,null,null,null,null,null,null,null,null,null,null,null,null,null,null,null,null,null,null,0,0,0,0,0,0]
[{"$f":"Činnosti!A19","v":12},{"$f":"Činnosti!B19","v":0},null,null,null,null,null,null,null,null,null,null,null,null,null,null,null,null,null,null,null,null,null,null,null,null,null,null,null,null,null,null,null,null,null,null,null,null,null,null,null,null,null,null,null,null,null,null,null,null,null,null,null,null,null,null,null,null,null,null,null,null,null,null,null,null,null,null,null,null,null,null,null,null,null,null,null,null,null,null,null,null,null,null,null,null,null,null,null,null,null,null,null,null,null,null,null,null,null,null,null,null,null,null,null,null,null,null,null,null,0,0,0,0,0,0]
[{"$f":"Činnosti!A20","v":13},{"$f":"Činnosti!B20","v":0},null,null,null,null,null,null,null,null,null,null,null,null,null,null,null,null,null,null,null,null,null,null,null,null,null,null,null,null,null,null,null,null,null,null,null,null,null,null,null,null,null,null,null,null,null,null,null,null,null,null,null,null,null,null,null,null,null,null,null,null,null,null,null,null,null,null,null,null,null,null,null,null,null,null,null,null,null,null,null,null,null,null,null,null,null,null,null,null,null,null,null,null,null,null,null,null,null,null,null,null,null,null,null,null,null,null,null,null,0,0,0,0,0,0]
[{"$f":"Činnosti!A21","v":14},{"$f":"Činnosti!B21","v":0},null,null,null,null,null,null,null,null,null,null,null,null,null,null,null,null,null,null,null,null,null,null,null,null,null,null,null,null,null,null,null,null,null,null,null,null,null,null,null,null,null,null,null,null,null,null,null,null,null,null,null,null,null,null,null,null,null,null,null,null,null,null,null,null,null,null,null,null,null,null,null,null,null,null,null,null,null,null,null,null,null,null,null,null,null,null,null,null,null,null,null,null,null,null,null,null,null,null,null,null,null,null,null,null,null,null,null,null,0,0,0,0,0,0]
[{"$f":"Činnosti!A22","v":15},{"$f":"Činnosti!B22","v":0},null,null,null,null,null,null,null,null,null,null,null,null,null,null,null,null,null,null,null,null,null,null,null,null,null,null,null,null,null,null,null,null,null,null,null,null,null,null,null,null,null,null,null,null,null,null,null,null,null,null,null,null,null,null,null,null,null,null,null,null,null,null,null,null,null,null,null,null,null,null,null,null,null,null,null,null,null,null,null,null,null,null,null,null,null,null,null,null,null,null,null,null,null,null,null,null,null,null,null,null,null,null,null,null,null,null,null,null,0,0,0,0,0,0]
[{"$f":"Činnosti!A23","v":16},{"$f":"Činnosti!B23","v":0},null,null,null,null,null,null,null,null,null,null,null,null,null,null,null,null,null,null,null,null,null,null,null,null,null,null,null,null,null,null,null,null,null,null,null,null,null,null,null,null,null,null,null,null,null,null,null,null,null,null,null,null,null,null,null,null,null,null,null,null,null,null,null,null,null,null,null,null,null,null,null,null,null,null,null,null,null,null,null,null,null,null,null,null,null,null,null,null,null,null,null,null,null,null,null,null,null,null,null,null,null,null,null,null,null,null,null,null,0,0,0,0,0,0]
[{"$f":"Činnosti!A24","v":17},{"$f":"Činnosti!B24","v":0},null,null,null,null,null,null,null,null,null,null,null,null,null,null,null,null,null,null,null,null,null,null,null,null,null,null,null,null,null,null,null,null,null,null,null,null,null,null,null,null,null,null,null,null,null,null,null,null,null,null,null,null,null,null,null,null,null,null,null,null,null,null,null,null,null,null,null,null,null,null,null,null,null,null,null,null,null,null,null,null,null,null,null,null,null,null,null,null,null,null,null,null,null,null,null,null,null,null,null,null,null,null,null,null,null,null,null,null,0,0,0,0,0,0]
[{"$f":"Činnosti!A25","v":18},{"$f":"Činnosti!B25","v":0},null,null,null,null,null,null,null,null,null,null,null,null,null,null,null,null,null,null,null,null,null,null,null,null,null,null,null,null,null,null,null,null,null,null,null,null,null,null,null,null,null,null,null,null,null,null,null,null,null,null,null,null,null,null,null,null,null,null,null,null,null,null,null,null,null,null,null,null,null,null,null,null,null,null,null,null,null,null,null,null,null,null,null,null,null,null,null,null,null,null,null,null,null,null,null,null,null,null,null,null,null,null,null,null,null,null,null,null,0,0,0,0,0,0]
[{"$f":"Činnosti!A26","v":19},{"$f":"Činnosti!B26","v":0},null,null,null,null,null,null,null,null,null,null,null,null,null,null,null,null,null,null,null,null,null,null,null,null,null,null,null,null,null,null,null,null,null,null,null,null,null,null,null,null,null,null,null,null,null,null,null,null,null,null,null,null,null,null,null,null,null,null,null,null,null,null,null,null,null,null,null,null,null,null,null,null,null,null,null,null,null,null,null,null,null,null,null,null,null,null,null,null,null,null,null,null,null,null,null,null,null,null,null,null,null,null,null,null,null,null,null,null,0,0,0,0,0,0]
[{"$f":"Činnosti!A27","v":20},{"$f":"Činnosti!B27","v":0},null,null,null,null,null,null,null,null,null,null,null,null,null,null,null,null,null,null,null,null,null,null,null,null,null,null,null,null,null,null,null,null,null,null,null,null,null,null,null,null,null,null,null,null,null,null,null,null,null,null,null,null,null,null,null,null,null,null,null,null,null,null,null,null,null,null,null,null,null,null,null,null,null,null,null,null,null,null,null,null,null,null,null,null,null,null,null,null,null,null,null,null,null,null,null,null,null,null,null,null,null,null,null,null,null,null,null,null,0,0,0,0,0,0]
[{"$f":"Činnosti!A28","v":21},{"$f":"Činnosti!B28","v":0},null,null,null,null,null,null,null,null,null,null,null,null,null,null,null,null,null,null,null,null,null,null,null,null,null,null,null,null,null,null,null,null,null,null,null,null,null,null,null,null,null,null,null,null,null,null,null,null,null,null,null,null,null,null,null,null,null,null,null,null,null,null,null,null,null,null,null,null,null,null,null,null,null,null,null,null,null,null,null,null,null,null,null,null,null,null,null,null,null,null,null,null,null,null,null,null,null,null,null,null,null,null,null,null,null,null,null,null,0,0,0,0,0,0]
[{"$f":"Činnosti!A29","v":22},{"$f":"Činnosti!B29","v":0},null,null,null,null,null,null,null,null,null,null,null,null,null,null,null,null,null,null,null,null,null,null,null,null,null,null,null,null,null,null,null,null,null,null,null,null,null,null,null,null,null,null,null,null,null,null,null,null,null,null,null,null,null,null,null,null,null,null,null,null,null,null,null,null,null,null,null,null,null,null,null,null,null,null,null,null,null,null,null,null,null,null,null,null,null,null,null,null,null,null,null,null,null,null,null,null,null,null,null,null,null,null,null,null,null,null,null,null,0,0,0,0,0,0]
[{"$f":"Činnosti!A30","v":23},{"$f":"Činnosti!B30","v":0},null,null,null,null,null,null,null,null,null,null,null,null,null,null,null,null,null,null,null,null,null,null,null,null,null,null,null,null,null,null,null,null,null,null,null,null,null,null,null,null,null,null,null,null,null,null,null,null,null,null,null,null,null,null,null,null,null,null,null,null,null,null,null,null,null,null,null,null,null,null,null,null,null,null,null,null,null,null,null,null,null,null,null,null,null,null,null,null,null,null,null,null,null,null,null,null,null,null,null,null,null,null,null,null,null,null,null,null,0,0,0,0,0,0]
[{"$f":"Činnosti!A31","v":24},{"$f":"Činnosti!B31","v":0},null,null,null,null,null,null,null,null,null,null,null,null,null,null,null,null,null,null,null,null,null,null,null,null,null,null,null,null,null,null,null,null,null,null,null,null,null,null,null,null,null,null,null,null,null,null,null,null,null,null,null,null,null,null,null,null,null,null,null,null,null,null,null,null,null,null,null,null,null,null,null,null,null,null,null,null,null,null,null,null,null,null,null,null,null,null,null,null,null,null,null,null,null,null,null,null,null,null,null,null,null,null,null,null,null,null,null,null,0,0,0,0,0,0]
[{"$f":"Činnosti!A32","v":25},{"$f":"Činnosti!B32","v":0},null,null,null,null,null,null,null,null,null,null,null,null,null,null,null,null,null,null,null,null,null,null,null,null,null,null,null,null,null,null,null,null,null,null,null,null,null,null,null,null,null,null,null,null,null,null,null,null,null,null,null,null,null,null,null,null,null,null,null,null,null,null,null,null,null,null,null,null,null,null,null,null,null,null,null,null,null,null,null,null,null,null,null,null,null,null,null,null,null,null,null,null,null,null,null,null,null,null,null,null,null,null,null,null,null,null,null,null,0,0,0,0,0,0]
[{"$f":"Činnosti!A33","v":26},{"$f":"Činnosti!B33","v":0},null,null,null,null,null,null,null,null,null,null,null,null,null,null,null,null,null,null,null,null,null,null,null,null,null,null,null,null,null,null,null,null,null,null,null,null,null,null,null,null,null,null,null,null,null,null,null,null,null,null,null,null,null,null,null,null,null,null,null,null,null,null,null,null,null,null,null,null,null,null,null,null,null,null,null,null,null,null,null,null,null,null,null,null,null,null,null,null,null,null,null,null,null,null,null,null,null,null,null,null,null,null,null,null,null,null,null,null,0,0,0,0,0,0]
[{"$f":"Činnosti!A34","v":27},{"$f":"Činnosti!B34","v":0},null,null,null,null,null,null,null,null,null,null,null,null,null,null,null,null,null,null,null,null,null,null,null,null,null,null,null,null,null,null,null,null,null,null,null,null,null,null,null,null,null,null,null,null,null,null,null,null,null,null,null,null,null,null,null,null,null,null,null,null,null,null,null,null,null,null,null,null,null,null,null,null,null,null,null,null,null,null,null,null,null,null,null,null,null,null,null,null,null,null,null,null,null,null,null,null,null,null,null,null,null,null,null,null,null,null,null,null,0,0,0,0,0,0]
[{"$f":"Činnosti!A35","v":28},{"$f":"Činnosti!B35","v":0},null,null,null,null,null,null,null,null,null,null,null,null,null,null,null,null,null,null,null,null,null,null,null,null,null,null,null,null,null,null,null,null,null,null,null,null,null,null,null,null,null,null,null,null,null,null,null,null,null,null,null,null,null,null,null,null,null,null,null,null,null,null,null,null,null,null,null,null,null,null,null,null,null,null,null,null,null,null,null,null,null,null,null,null,null,null,null,null,null,null,null,null,null,null,null,null,null,null,null,null,null,null,null,null,null,null,null,null,0,0,0,0,0,0]
[{"$f":"Činnosti!A36","v":29},{"$f":"Činnosti!B36","v":0},null,null,null,null,null,null,null,null,null,null,null,null,null,null,null,null,null,null,null,null,null,null,null,null,null,null,null,null,null,null,null,null,null,null,null,null,null,null,null,null,null,null,null,null,null,null,null,null,null,null,null,null,null,null,null,null,null,null,null,null,null,null,null,null,null,null,null,null,null,null,null,null,null,null,null,null,null,null,null,null,null,null,null,null,null,null,null,null,null,null,null,null,null,null,null,null,null,null,null,null,null,null,null,null,null,null,null,null,0,0,0,0,0,0]
[{"$f":"Činnosti!A37","v":30},{"$f":"Činnosti!B37","v":0},null,null,null,null,null,null,null,null,null,null,null,null,null,null,null,null,null,null,null,null,null,null,null,null,null,null,null,null,null,null,null,null,null,null,null,null,null,null,null,null,null,null,null,null,null,null,null,null,null,null,null,null,null,null,null,null,null,null,null,null,null,null,null,null,null,null,null,null,null,null,null,null,null,null,null,null,null,null,null,null,null,null,null,null,null,null,null,null,null,null,null,null,null,null,null,null,null,null,null,null,null,null,null,null,null,null,null,null,0,0,0,0,0,0]
[{"$f":"Činnosti!A38","v":31},{"$f":"Činnosti!B38","v":0},null,null,null,null,null,null,null,null,null,null,null,null,null,null,null,null,null,null,null,null,null,null,null,null,null,null,null,null,null,null,null,null,null,null,null,null,null,null,null,null,null,null,null,null,null,null,null,null,null,null,null,null,null,null,null,null,null,null,null,null,null,null,null,null,null,null,null,null,null,null,null,null,null,null,null,null,null,null,null,null,null,null,null,null,null,null,null,null,null,null,null,null,null,null,null,null,null,null,null,null,null,null,null,null,null,null,null,null,0,0,0,0,0,0]
[{"$f":"Činnosti!A39","v":32},{"$f":"Činnosti!B39","v":0},null,null,null,null,null,null,null,null,null,null,null,null,null,null,null,null,null,null,null,null,null,null,null,null,null,null,null,null,null,null,null,null,null,null,null,null,null,null,null,null,null,null,null,null,null,null,null,null,null,null,null,null,null,null,null,null,null,null,null,null,null,null,null,null,null,null,null,null,null,null,null,null,null,null,null,null,null,null,null,null,null,null,null,null,null,null,null,null,null,null,null,null,null,null,null,null,null,null,null,null,null,null,null,null,null,null,null,null,0,0,0,0,0,0]
[{"$f":"Činnosti!A40","v":33},{"$f":"Činnosti!B40","v":0},null,null,null,null,null,null,null,null,null,null,null,null,null,null,null,null,null,null,null,null,null,null,null,null,null,null,null,null,null,null,null,null,null,null,null,null,null,null,null,null,null,null,null,null,null,null,null,null,null,null,null,null,null,null,null,null,null,null,null,null,null,null,null,null,null,null,null,null,null,null,null,null,null,null,null,null,null,null,null,null,null,null,null,null,null,null,null,null,null,null,null,null,null,null,null,null,null,null,null,null,null,null,null,null,null,null,null,null,0,0,0,0,0,0]
[{"$f":"Činnosti!A41","v":34},{"$f":"Činnosti!B41","v":0},null,null,null,null,null,null,null,null,null,null,null,null,null,null,null,null,null,null,null,null,null,null,null,null,null,null,null,null,null,null,null,null,null,null,null,null,null,null,null,null,null,null,null,null,null,null,null,null,null,null,null,null,null,null,null,null,null,null,null,null,null,null,null,null,null,null,null,null,null,null,null,null,null,null,null,null,null,null,null,null,null,null,null,null,null,null,null,null,null,null,null,null,null,null,null,null,null,null,null,null,null,null,null,null,null,null,null,null,0,0,0,0,0,0]
[{"$f":"Činnosti!A42","v":35},{"$f":"Činnosti!B42","v":0},null,null,null,null,null,null,null,null,null,null,null,null,null,null,null,null,null,null,null,null,null,null,null,null,null,null,null,null,null,null,null,null,null,null,null,null,null,null,null,null,null,null,null,null,null,null,null,null,null,null,null,null,null,null,null,null,null,null,null,null,null,null,null,null,null,null,null,null,null,null,null,null,null,null,null,null,null,null,null,null,null,null,null,null,null,null,null,null,null,null,null,null,null,null,null,null,null,null,null,null,null,null,null,null,null,null,null,null,0,0,0,0,0,0]
[{"$f":"Činnosti!A43","v":36},{"$f":"Činnosti!B43","v":0},null,null,null,null,null,null,null,null,null,null,null,null,null,null,null,null,null,null,null,null,null,null,null,null,null,null,null,null,null,null,null,null,null,null,null,null,null,null,null,null,null,null,null,null,null,null,null,null,null,null,null,null,null,null,null,null,null,null,null,null,null,null,null,null,null,null,null,null,null,null,null,null,null,null,null,null,null,null,null,null,null,null,null,null,null,null,null,null,null,null,null,null,null,null,null,null,null,null,null,null,null,null,null,null,null,null,null,null,0,0,0,0,0,0]
[{"$f":"Činnosti!A44","v":37},{"$f":"Činnosti!B44","v":0},null,null,null,null,null,null,null,null,null,null,null,null,null,null,null,null,null,null,null,null,null,null,null,null,null,null,null,null,null,null,null,null,null,null,null,null,null,null,null,null,null,null,null,null,null,null,null,null,null,null,null,null,null,null,null,null,null,null,null,null,null,null,null,null,null,null,null,null,null,null,null,null,null,null,null,null,null,null,null,null,null,null,null,null,null,null,null,null,null,null,null,null,null,null,null,null,null,null,null,null,null,null,null,null,null,null,null,null,0,0,0,0,0,0]
[{"$f":"Činnosti!A45","v":38},{"$f":"Činnosti!B45","v":0},null,null,null,null,null,null,null,null,null,null,null,null,null,null,null,null,null,null,null,null,null,null,null,null,null,null,null,null,null,null,null,null,null,null,null,null,null,null,null,null,null,null,null,null,null,null,null,null,null,null,null,null,null,null,null,null,null,null,null,null,null,null,null,null,null,null,null,null,null,null,null,null,null,null,null,null,null,null,null,null,null,null,null,null,null,null,null,null,null,null,null,null,null,null,null,null,null,null,null,null,null,null,null,null,null,null,null,null,0,0,0,0,0,0]
[{"$f":"Činnosti!A46","v":39},{"$f":"Činnosti!B46","v":0},null,null,null,null,null,null,null,null,null,null,null,null,null,null,null,null,null,null,null,null,null,null,null,null,null,null,null,null,null,null,null,null,null,null,null,null,null,null,null,null,null,null,null,null,null,null,null,null,null,null,null,null,null,null,null,null,null,null,null,null,null,null,null,null,null,null,null,null,null,null,null,null,null,null,null,null,null,null,null,null,null,null,null,null,null,null,null,null,null,null,null,null,null,null,null,null,null,null,null,null,null,null,null,null,null,null,null,null,0,0,0,0,0,0]
[{"$f":"Činnosti!A47","v":40},{"$f":"Činnosti!B47","v":0},null,null,null,null,null,null,null,null,null,null,null,null,null,null,null,null,null,null,null,null,null,null,null,null,null,null,null,null,null,null,null,null,null,null,null,null,null,null,null,null,null,null,null,null,null,null,null,null,null,null,null,null,null,null,null,null,null,null,null,null,null,null,null,null,null,null,null,null,null,null,null,null,null,null,null,null,null,null,null,null,null,null,null,null,null,null,null,null,null,null,null,null,null,null,null,null,null,null,null,null,null,null,null,null,null,null,null,null,0,0,0,0,0,0]
[{"$f":"Činnosti!A48","v":41},{"$f":"Činnosti!B48","v":0},null,null,null,null,null,null,null,null,null,null,null,null,null,null,null,null,null,null,null,null,null,null,null,null,null,null,null,null,null,null,null,null,null,null,null,null,null,null,null,null,null,null,null,null,null,null,null,null,null,null,null,null,null,null,null,null,null,null,null,null,null,null,null,null,null,null,null,null,null,null,null,null,null,null,null,null,null,null,null,null,null,null,null,null,null,null,null,null,null,null,null,null,null,null,null,null,null,null,null,null,null,null,null,null,null,null,null,null,0,0,0,0,0,0]
[{"$f":"Činnosti!A49","v":42},{"$f":"Činnosti!B49","v":0},null,null,null,null,null,null,null,null,null,null,null,null,null,null,null,null,null,null,null,null,null,null,null,null,null,null,null,null,null,null,null,null,null,null,null,null,null,null,null,null,null,null,null,null,null,null,null,null,null,null,null,null,null,null,null,null,null,null,null,null,null,null,null,null,null,null,null,null,null,null,null,null,null,null,null,null,null,null,null,null,null,null,null,null,null,null,null,null,null,null,null,null,null,null,null,null,null,null,null,null,null,null,null,null,null,null,null,null,0,0,0,0,0,0]
[{"$f":"Činnosti!A50","v":43},{"$f":"Činnosti!B50","v":0},null,null,null,null,null,null,null,null,null,null,null,null,null,null,null,null,null,null,null,null,null,null,null,null,null,null,null,null,null,null,null,null,null,null,null,null,null,null,null,null,null,null,null,null,null,null,null,null,null,null,null,null,null,null,null,null,null,null,null,null,null,null,null,null,null,null,null,null,null,null,null,null,null,null,null,null,null,null,null,null,null,null,null,null,null,null,null,null,null,null,null,null,null,null,null,null,null,null,null,null,null,null,null,null,null,null,null,null,0,0,0,0,0,0]
[{"$f":"Činnosti!A51","v":44},{"$f":"Činnosti!B51","v":0},null,null,null,null,null,null,null,null,null,null,null,null,null,null,null,null,null,null,null,null,null,null,null,null,null,null,null,null,null,null,null,null,null,null,null,null,null,null,null,null,null,null,null,null,null,null,null,null,null,null,null,null,null,null,null,null,null,null,null,null,null,null,null,null,null,null,null,null,null,null,null,null,null,null,null,null,null,null,null,null,null,null,null,null,null,null,null,null,null,null,null,null,null,null,null,null,null,null,null,null,null,null,null,null,null,null,null,null,0,0,0,0,0,0]
[{"$f":"Činnosti!A52","v":45},{"$f":"Činnosti!B52","v":0},null,null,null,null,null,null,null,null,null,null,null,null,null,null,null,null,null,null,null,null,null,null,null,null,null,null,null,null,null,null,null,null,null,null,null,null,null,null,null,null,null,null,null,null,null,null,null,null,null,null,null,null,null,null,null,null,null,null,null,null,null,null,null,null,null,null,null,null,null,null,null,null,null,null,null,null,null,null,null,null,null,null,null,null,null,null,null,null,null,null,null,null,null,null,null,null,null,null,null,null,null,null,null,null,null,null,null,null,0,0,0,0,0,0]
[{"$f":"Činnosti!A53","v":46},{"$f":"Činnosti!B53","v":0},null,null,null,null,null,null,null,null,null,null,null,null,null,null,null,null,null,null,null,null,null,null,null,null,null,null,null,null,null,null,null,null,null,null,null,null,null,null,null,null,null,null,null,null,null,null,null,null,null,null,null,null,null,null,null,null,null,null,null,null,null,null,null,null,null,null,null,null,null,null,null,null,null,null,null,null,null,null,null,null,null,null,null,null,null,null,null,null,null,null,null,null,null,null,null,null,null,null,null,null,null,null,null,null,null,null,null,null,0,0,0,0,0,0]
[{"$f":"Činnosti!A54","v":47},{"$f":"Činnosti!B54","v":0},null,null,null,null,null,null,null,null,null,null,null,null,null,null,null,null,null,null,null,null,null,null,null,null,null,null,null,null,null,null,null,null,null,null,null,null,null,null,null,null,null,null,null,null,null,null,null,null,null,null,null,null,null,null,null,null,null,null,null,null,null,null,null,null,null,null,null,null,null,null,null,null,null,null,null,null,null,null,null,null,null,null,null,null,null,null,null,null,null,null,null,null,null,null,null,null,null,null,null,null,null,null,null,null,null,null,null,null,0,0,0,0,0,0]
[{"$f":"Činnosti!A55","v":48},{"$f":"Činnosti!B55","v":0},null,null,null,null,null,null,null,null,null,null,null,null,null,null,null,null,null,null,null,null,null,null,null,null,null,null,null,null,null,null,null,null,null,null,null,null,null,null,null,null,null,null,null,null,null,null,null,null,null,null,null,null,null,null,null,null,null,null,null,null,null,null,null,null,null,null,null,null,null,null,null,null,null,null,null,null,null,null,null,null,null,null,null,null,null,null,null,null,null,null,null,null,null,null,null,null,null,null,null,null,null,null,null,null,null,null,null,null,0,0,0,0,0,0]
[{"$f":"Činnosti!A56","v":49},{"$f":"Činnosti!B56","v":0},null,null,null,null,null,null,null,null,null,null,null,null,null,null,null,null,null,null,null,null,null,null,null,null,null,null,null,null,null,null,null,null,null,null,null,null,null,null,null,null,null,null,null,null,null,null,null,null,null,null,null,null,null,null,null,null,null,null,null,null,null,null,null,null,null,null,null,null,null,null,null,null,null,null,null,null,null,null,null,null,null,null,null,null,null,null,null,null,null,null,null,null,null,null,null,null,null,null,null,null,null,null,null,null,null,null,null,null,0,0,0,0,0,0]
[{"$f":"Činnosti!A57","v":50},{"$f":"Činnosti!B57","v":0},null,null,null,null,null,null,null,null,null,null,null,null,null,null,null,null,null,null,null,null,null,null,null,null,null,null,null,null,null,null,null,null,null,null,null,null,null,null,null,null,null,null,null,null,null,null,null,null,null,null,null,null,null,null,null,null,null,null,null,null,null,null,null,null,null,null,null,null,null,null,null,null,null,null,null,null,null,null,null,null,null,null,null,null,null,null,null,null,null,null,null,null,null,null,null,null,null,null,null,null,null,null,null,null,null,null,null,null,0,0,0,0,0,0]
[null,null,null,null,null,null,null,null,null,null,null,null,null,null,null,null,null,null,null,null,null,null,null,null,null,null,null,null,null,null,null,null,null,null,null,null,null,null,null,null,null,null,null,null,null,null,null,null,null,null,null,null,null,null,null,null,null,null,null,null,null,null,null,null,null,null,null,null,null,null,null,null,null,null,null,null,null,null,null,null,null,null,null,null,null,null,null,null,null,null,null,null,null,null,null,null,null,null,null,null,null,null,null,null,null,null,null,null,null,null,"Ostatní","Ubytko"]
[null,"ostatní + ubytko",null,null,null,null,null,null,null,null,null,null,null,null,null,null,null,null,null,null,null,null,null,null,null,null,null,null,null,null,null,null,null,null,null,null,null,null,null,null,null,null,null,null,null,null,null,null,null,null,null,null,null,null,null,null,null,null,null,null,null,null,null,null,null,null,null,null,null,null,null,null,null,null,null,null,null,null,null,null,null,null,null,null,null,null,null,null,null,null,null,null,null,null,null,null,null,null,null,null,null,null,null,null,null,null,null,null,null,null,{"$f":"C59+I59+O59+U59+AA59+AG59+AM59+AS59+AY59+BE59+BK59+BQ59+BW59+CC59+CI59+CO59+CU59+DA59","v":0},{"$f":"D59+J59+P59+V59+AB59+AH59+AN59+AT59+AZ59+BF59+BL59+BR59+BX59+CD59+CJ59+CP59+CV59+DB59","v":0}]